bitfinex/quotes_BTCUSD_20240712
["timestamp","ask_amount","ask_price","bid_price","bid_amount"]
[1720775208638,0.99365479,57437.0,57436.0,0.53872922]
[1720775208835,0.99365479,57437.0,57436.0,0.63767488]
[1720775209885,0.99365479,57437.0,57436.0,0.69767488]
[1720775210246,0.972347,57437.0,57436.0,0.69767488]
[1720775210446,0.449207,57437.0,57436.0,0.69767488]
[1720775211069,0.449207,57437.0,57436.0,0.77556237]
[1720775211434,0.001,57437.0,57436.0,1.64609437]
[1720775211650,0.001,57437.0,57436.0,1.66909437]
[1720775211849,0.001,57437.0,57436.0,1.6721579]
[1720775212253,0.001,57437.0,57436.0,1.66909437]
[1720775213231,0.00083,57442.0,57441.0,0.58852922]
[1720775213432,0.00083,57442.0,57441.0,0.76867488]
[1720775213855,0.166407,57446.0,57445.0,0.319]
[1720775214059,0.266407,57446.0,57445.0,0.38332922]
[1720775214262,0.266407,57446.0,57445.0,0.46050306]
[1720775214666,0.266407,57446.0,57445.0,0.55944872]
[1720775215237,0.267407,57446.0,57445.0,0.56844872]
[1720775217043,0.267407,57446.0,57445.0,0.49127488]
[1720775217412,0.267407,57446.0,57445.0,0.50227488]
[1720775217611,0.268407,57446.0,57445.0,0.50227488]
[1720775219105,0.412707,57446.0,57445.0,0.38327488]
[1720775219313,0.412707,57446.0,57445.0,0.31894566]
[1720775219531,0.412707,57446.0,57445.0,0.22]
[1720775220140,0.411707,57446.0,57445.0,0.211]
[1720775220320,0.411707,57446.0,57445.0,0.209]
[1720775220742,0.412707,57446.0,57445.0,0.218]
[1720775220945,0.411707,57446.0,57445.0,0.2]
[1720775221228,0.411707,57446.0,57445.0,0.209]
[1720775221440,0.411707,57446.0,57445.0,0.018]
[1720775221441,0.412707,57446.0,57445.0,0.018]
[1720775222601,0.413537,57446.0,57445.0,0.018]
[1720775223727,0.413537,57446.0,57445.0,0.02106353]
[1720775224323,0.413537,57446.0,57445.0,0.22106353]
[1720775224524,0.413537,57446.0,57445.0,0.218]
[1720775225181,0.269237,57446.0,57445.0,0.337]
[1720775225907,0.269237,57446.0,57445.0,0.48032922]
[1720775226318,0.268237,57446.0,57445.0,0.63027488]
[1720775226524,0.268237,57446.0,57445.0,0.69537488]
[1720775226669,0.267237,57446.0,57445.0,0.68637488]
[1720775226867,0.267237,57446.0,57445.0,0.76313237]
[1720775226868,0.274906,57446.0,57445.0,0.76313237]
[1720775227279,0.10183,57446.0,57445.0,0.77113237]
[1720775227514,0.10283,57446.0,57445.0,0.78013237]
[1720775227905,0.10083,57446.0,57445.0,0.76313237]
[1720775228107,0.10183,57446.0,57445.0,0.77213237]
[1720775228864,0.00183,57446.0,57445.0,0.63537488]
[1720775229370,0.176906,57446.0,57445.0,0.64137488]
[1720775229575,0.276906,57446.0,57445.0,0.70137488]
[1720775230126,0.276906,57446.0,57445.0,0.64137488]
[1720775230327,0.276906,57446.0,57445.0,0.70137488]
[1720775230534,0.276906,57446.0,57445.0,0.64137488]
[1720775230736,0.276906,57446.0,57445.0,0.70137488]
[1720775231355,0.10283,57446.0,57445.0,0.70137488]
[1720775231549,0.10283,57446.0,57445.0,0.77181872]
[1720775231999,0.00283,57446.0,57445.0,0.77181872]
[1720775232228,0.10283,57446.0,57445.0,0.77181872]
[1720775232445,0.00283,57446.0,57445.0,0.94589772]
[1720775235096,0.00283,57446.0,57445.0,2.01437472]
[1720775237326,0.00283,57446.0,57445.0,2.21437472]
[1720775238005,0.00283,57446.0,57445.0,2.01437472]
[1720775238226,0.00283,57446.0,57445.0,2.21437472]
[1720775238434,0.00283,57446.0,57445.0,2.31437472]
[1720775238872,0.00283,57446.0,57445.0,2.11437472]
[1720775239312,0.00283,57446.0,57445.0,2.31437472]
[1720775240941,0.00183,57446.0,57445.0,2.30737472]
[1720775241160,0.00083,57446.0,57445.0,2.29837472]
[1720775241394,0.00083,57446.0,57445.0,2.09837472]
[1720775241581,0.00083,57446.0,57445.0,2.11237472]
[1720775241803,0.00083,57446.0,57445.0,2.12637472]
[1720775242431,0.00083,57446.0,57445.0,2.14731474]
[1720775242631,0.00083,57446.0,57445.0,2.84731474]
[1720775244109,0.00083,57446.0,57445.0,3.47917374]
[1720775245329,0.00083,57446.0,57445.0,3.46517374]
[1720775246456,0.00083,57446.0,57445.0,2.21931474]
[1720775246699,0.00083,57446.0,57445.0,2.24731474]
[1720775246931,0.00083,57446.0,57445.0,2.22431474]
[1720775247166,0.00083,57446.0,57445.0,2.0538709]
[1720775247427,0.00083,57446.0,57445.0,2.00493088]
[1720775247654,0.00083,57446.0,57445.0,1.91893088]
[1720775247848,0.00083,57446.0,57445.0,1.57077188]
[1720775248101,0.00083,57446.0,57445.0,1.55677188]
[1720775248328,0.00083,57446.0,57445.0,2.11216828]
[1720775248566,0.00083,57446.0,57445.0,1.60777188]
[1720775248821,0.00083,57446.0,57445.0,0.74435388]
[1720775250028,0.00083,57446.0,57445.0,0.75335388]
[1720775250252,0.00083,57446.0,57445.0,0.76735388]
[1720775250484,0.00083,57446.0,57445.0,0.73935388]
[1720775250747,0.00083,57446.0,57445.0,0.75335388]
[1720775250982,0.00083,57446.0,57445.0,0.59327488]
[1720775251230,0.00083,57446.0,57445.0,0.56527488]
[1720775251457,0.00083,57446.0,57445.0,0.75335388]
[1720775251697,0.00083,57446.0,57445.0,0.76735388]
[1720775252152,0.00083,57446.0,57445.0,0.59327488]
[1720775254465,0.00083,57446.0,57445.0,0.57027488]
[1720775254694,0.00083,57446.0,57445.0,0.65147488]
[1720775256326,0.00083,57446.0,57445.0,0.63747488]
[1720775257039,0.00083,57446.0,57445.0,0.63547488]
[1720775257270,0.00083,57446.0,57445.0,0.58947488]
[1720775257529,0.174906,57446.0,57445.0,0.57747488]
[1720775258477,0.174906,57446.0,57445.0,0.59147488]
[1720775259797,0.174906,57446.0,57445.0,0.51027488]
[1720775259798,0.319106,57446.0,57445.0,0.51027488]
[1720775265855,0.319106,57446.0,57445.0,0.57027488]
[1720775266057,0.319106,57446.0,57445.0,0.51027488]
[1720775266273,0.319106,57446.0,57445.0,0.63542237]
[1720775266274,0.00083,57446.0,57445.0,0.63542237]
[1720775266694,0.00083,57446.0,57445.0,0.6384859]
[1720775269569,0.14060862,57454.0,57453.0,0.38332922]
[1720775269714,0.082,57454.0,57453.0,0.38332922]
[1720775270891,0.082,57454.0,57453.0,0.39332922]
[1720775271460,0.10278416,57454.0,57453.0,0.39332922]
[1720775271661,0.20278416,57454.0,57453.0,0.39332922]
[1720775272547,0.26908416,57454.0,57453.0,0.39332922]
[1720775280441,0.26908416,57454.0,57453.0,0.27432922]
[1720775280839,0.26908416,57454.0,57453.0,0.39332922]
[1720775282311,0.37827558,57454.0,57453.0,0.01]
[1720775282520,0.37827558,57454.0,57443.0,0.06432922]
[1720775282521,0.1441,57447.0,57443.0,0.06432922]
[1720775282733,0.0768,57444.0,57443.0,0.06432922]
[1720775282932,0.0768,57444.0,57443.0,0.36327488]
[1720775283141,0.1768,57444.0,57443.0,0.36327488]
[1720775283376,0.1768,57444.0,57443.0,0.06432922]
[1720775283582,0.1768,57444.0,57443.0,0.16327488]
[1720775283792,0.1768,57444.0,57443.0,0.36327488]
[1720775283993,0.1768,57444.0,57443.0,0.36727488]
[1720775284618,0.1768,57444.0,57443.0,0.37027488]
[1720775284832,0.1768,57444.0,57443.0,0.17027488]
[1720775285398,0.1768,57444.0,57443.0,0.07132922]
[1720775286243,0.1768,57444.0,57443.0,0.17027488]
[1720775286440,0.1768,57444.0,57443.0,0.37027488]
[1720775286958,0.1753,57444.0,57443.0,0.37027488]
[1720775287396,0.1753,57444.0,57443.0,0.07132922]
[1720775287748,0.1753,57444.0,57443.0,0.17027488]
[1720775288535,0.1753,57444.0,57443.0,0.17118788]
[1720775289698,0.1753,57444.0,57443.0,0.37118788]
[1720775289861,0.1753,57444.0,57443.0,0.49018788]
[1720775290282,0.1753,57444.0,57443.0,0.37118788]
[1720775290686,0.1753,57444.0,57443.0,0.17118788]
[1720775291313,0.1753,57444.0,57443.0,0.10685866]
[1720775291515,0.1753,57444.0,57443.0,0.007913]
[1720775291748,0.1753,57444.0,57443.0,0.37118788]
[1720775292464,0.1753,57444.0,57443.0,0.36818788]
[1720775293094,0.1753,57444.0,57443.0,0.004913]
[1720775293322,0.2565,57444.0,57443.0,0.000913]
[1720775293495,0.2565,57444.0,57443.0,0.002913]
[1720775293715,0.1753,57444.0,57443.0,0.30185866]
[1720775293966,0.1753,57444.0,57443.0,0.41885866]
[1720775294795,0.12015212,57444.0,57443.0,0.48318788]
[1720775295003,0.02015212,57444.0,57443.0,0.48318788]
[1720775295210,0.12015212,57444.0,57443.0,0.48318788]
[1720775295419,0.1,57444.0,57443.0,0.48318788]
[1720775295631,0.0777,57448.0,57443.0,0.48318788]
[1720775295632,0.01983896,57448.0,57447.0,0.059]
[1720775295835,0.01983896,57448.0,57447.0,0.54767488]
[1720775296049,0.00083,57454.0,57453.0,0.2]
[1720775296248,0.1812,57458.0,57454.0,0.2]
[1720775296452,0.1812,57458.0,57456.0,0.2]
[1720775296762,0.1812,57458.0,57457.0,0.20306353]
[1720775297229,0.1812,57458.0,57457.0,0.2]
[1720775297437,0.0812,57458.0,57456.0,0.2]
[1720775297637,0.0812,57458.0,57457.0,0.00306353]
[1720775298424,0.0812,57458.0,57455.0,0.00306353]
[1720775298658,0.0812,57460.0,57459.0,0.2]
[1720775298868,0.10113657,57460.0,57457.0,0.2]
[1720775298997,0.0812,57460.0,57459.0,0.2]
[1720775299201,0.0812,57460.0,57457.0,0.059]
[1720775299202,0.1772,57461.0,57460.0,0.319]
[1720775299402,0.1772,57461.0,57460.0,0.2]
[1720775299403,0.12054865,57461.0,57460.0,0.2]
[1720775299603,0.12054865,57461.0,57460.0,0.319]
[1720775299604,0.02054865,57461.0,57460.0,0.319]
[1720775299927,0.01823243,57464.0,57463.0,0.2]
[1720775300126,0.01823243,57464.0,57463.0,0.319]
[1720775301236,0.03825665,57464.0,57463.0,0.319]
[1720775301392,0.01823243,57464.0,57463.0,0.319]
[1720775302468,0.01823243,57464.0,57463.0,0.2]
[1720775302672,0.01823243,57464.0,57462.0,0.06432922]
[1720775302890,0.09713243,57464.0,57460.0,0.00306353]
[1720775303099,0.09713243,57464.0,57459.0,0.00306353]
[1720775303100,0.08242324,57463.0,57459.0,0.00306353]
[1720775303312,0.09713243,57464.0,57459.0,0.00306353]
[1720775303313,0.145,57460.0,57459.0,0.00306353]
[1720775303538,0.245,57460.0,57459.0,0.00306353]
[1720775303741,0.001,57457.0,57454.0,0.09894566]
[1720775303907,0.1,57459.0,57454.0,0.09894566]
[1720775304249,0.1,57459.0,57457.0,0.2]
[1720775304380,0.1,57459.0,57458.0,0.32]
[1720775305072,0.1,57459.0,57458.0,0.2]
[1720775305301,0.1,57459.0,57458.0,0.00306353]
[1720775305431,0.0653,57464.0,57458.0,0.00306353]
[1720775305630,0.0788103,57464.0,57458.0,0.00306353]
[1720775305881,0.0788103,57464.0,57456.0,0.00306353]
[1720775306483,0.0653,57464.0,57455.0,0.1]
[1720775306658,0.08605264,57464.0,57457.0,0.2]
[1720775307623,0.0752,57463.0,57457.0,0.2]
[1720775307837,0.1,57463.0,57459.0,0.2]
[1720775308150,0.1,57463.0,57461.0,0.2]
[1720775308615,0.1,57463.0,57462.0,0.0654]
[1720775308809,0.1,57463.0,57462.0,0.4854]
[1720775309049,0.02075264,57464.0,57463.0,0.20306353]
[1720775309350,0.02075264,57464.0,57462.0,0.2854]
[1720775309351,0.169797,57470.0,57465.0,0.00306353]
[1720775309568,0.1,57470.0,57465.0,0.00306353]
[1720775309817,0.1,57470.0,57465.0,0.20306353]
[1720775310395,0.1,57470.0,57462.0,0.2854]
[1720775310396,0.02513093,57471.0,57470.0,0.2]
[1720775310532,0.0785,57476.0,57471.0,0.2]
[1720775310732,0.10346098,57476.0,57472.0,0.00306353]
[1720775310933,0.17325098,57476.0,57472.0,0.00306353]
[1720775311134,0.10346098,57476.0,57472.0,0.00306353]
[1720775312215,0.10346098,57476.0,57472.0,0.20306353]
[1720775312404,0.10346098,57476.0,57472.0,0.00306353]
[1720775312597,0.12873902,57476.0,57470.0,0.00306353]
[1720775313180,0.1383,57475.0,57470.0,0.00306353]
[1720775313382,0.061,57472.0,57461.0,0.1]
[1720775313586,0.161,57472.0,57471.0,0.001]
[1720775313990,0.161,57472.0,57462.0,0.2]
[1720775314218,0.1898539,57472.0,57470.0,0.002]
[1720775314420,0.161,57472.0,57470.0,0.002]
[1720775314592,0.161,57472.0,57470.0,0.001]
[1720775314799,0.161,57472.0,57471.0,0.001]
[1720775314994,0.161,57472.0,57471.0,0.002]
[1720775315190,0.161,57472.0,57471.0,0.001]
[1720775315873,0.1898539,57472.0,57471.0,0.001]
[1720775316736,0.1898539,57472.0,57462.0,0.1]
[1720775316940,0.1998539,57472.0,57470.0,0.001]
[1720775317146,0.1998539,57472.0,57471.0,0.001]
[1720775317404,0.1998539,57472.0,57470.0,0.001]
[1720775317573,0.02771539,57471.0,57460.0,0.4]
[1720775317773,0.02771539,57471.0,57460.0,0.3]
[1720775317975,0.02771539,57471.0,57462.0,0.2]
[1720775318321,0.175,57472.0,57460.0,0.2]
[1720775318322,0.0781,57469.0,57460.0,0.2]
[1720775318541,0.1781,57469.0,57460.0,0.2]
[1720775319076,0.1781,57469.0,57459.0,0.2659]
[1720775319277,0.062,57468.0,57457.0,0.2786]
[1720775319506,0.18601,57468.0,57457.0,0.2]
[1720775319957,0.18601,57468.0,57460.0,0.001]
[1720775320157,0.18601,57468.0,57457.0,0.2]
[1720775320489,0.18601,57468.0,57457.0,0.20092175]
[1720775320733,0.026411,57467.0,57456.0,0.0612]
[1720775320927,0.0781,57466.0,57457.0,0.000913]
[1720775321124,0.0781,57464.0,57460.0,0.001]
[1720775321326,0.0970106,57463.0,57460.0,0.001]
[1720775321574,0.0781,57461.0,57457.0,0.001913]
[1720775321705,0.1781,57461.0,57457.0,0.001913]
[1720775322106,0.1781,57461.0,57457.0,0.002913]
[1720775323161,0.1781,57461.0,57457.0,0.001913]
[1720775323628,0.1781,57461.0,57457.0,0.000913]
[1720775323982,0.1791,57461.0,57457.0,0.000913]
[1720775324388,0.02451,57460.0,57457.0,0.000913]
[1720775324594,0.12451,57460.0,57457.0,0.000913]
[1720775324885,0.12451,57460.0,57457.0,0.002913]
[1720775325168,0.12451,57460.0,57443.0,0.063613]
[1720775325169,0.1375,57458.0,57443.0,0.063613]
[1720775325322,0.12451,57460.0,57446.0,0.51068611]
[1720775325323,0.1375,57455.0,57446.0,0.51068611]
[1720775325532,0.1375,57455.0,57443.0,0.100913]
[1720775325533,0.340623,57454.0,57443.0,0.100913]
[1720775325901,0.1055,57453.0,57443.0,0.100913]
[1720775326101,0.1,57452.0,57443.0,0.100913]
[1720775326363,0.1375,57451.0,57443.0,0.000913]
[1720775326579,0.1,57450.0,57443.0,0.000913]
[1720775327194,0.1,57450.0,57443.0,0.001913]
[1720775327626,0.1,57450.0,57443.0,0.000913]
[1720775327839,0.1,57450.0,57443.0,0.001913]
[1720775327840,0.13915,57450.0,57443.0,0.001913]
[1720775328459,0.15315,57450.0,57443.0,0.001913]
[1720775328903,0.13915,57450.0,57443.0,0.001913]
[1720775329335,0.13915,57450.0,57443.0,0.000913]
[1720775329336,0.12515,57450.0,57443.0,0.000913]
[1720775329528,0.026265,57449.0,57443.0,0.000913]
[1720775330862,0.040265,57449.0,57443.0,0.000913]
[1720775331303,0.053265,57449.0,57443.0,0.000913]
[1720775331740,0.123087,57449.0,57443.0,0.000913]
[1720775331923,0.1,57448.0,57443.0,0.000913]
[1720775332140,0.1460587,57448.0,57443.0,0.000913]
[1720775333326,0.1590587,57448.0,57443.0,0.000913]
[1720775334147,0.1460587,57448.0,57443.0,0.000913]
[1720775334507,0.1580587,57448.0,57443.0,0.000913]
[1720775334706,0.1710587,57448.0,57443.0,0.000913]
[1720775334937,0.125,57448.0,57447.0,0.19992175]
[1720775335175,0.013,57448.0,57447.0,0.19992175]
[1720775335393,0.125,57448.0,57447.0,0.19992175]
[1720775336016,0.113,57448.0,57447.0,0.19992175]
[1720775336192,0.1,57448.0,57447.0,0.19992175]
[1720775336392,0.1,57448.0,57447.0,0.48192175]
[1720775336594,0.0312358,57448.0,57447.0,0.48192175]
[1720775337138,0.0392358,57448.0,57447.0,0.48192175]
[1720775337355,0.0512358,57448.0,57447.0,0.48192175]
[1720775337738,0.0302358,57448.0,57447.0,0.48192175]
[1720775337930,0.0222358,57448.0,57447.0,0.48192175]
[1720775338181,0.0252358,57448.0,57447.0,0.48192175]
[1720775338973,0.0252358,57448.0,57447.0,0.56362175]
[1720775339424,0.0212358,57448.0,57447.0,0.56362175]
[1720775339630,0.0242358,57448.0,57447.0,0.56362175]
[1720775340546,0.0212358,57448.0,57447.0,0.56362175]
[1720775340970,0.0222358,57448.0,57447.0,0.56362175]
[1720775342042,0.0222358,57448.0,57447.0,0.72362175]
[1720775342250,0.0222358,57448.0,57447.0,0.66362175]
[1720775343119,0.0192358,57448.0,57447.0,0.66362175]
[1720775343337,0.0202358,57448.0,57447.0,0.66762175]
[1720775343711,0.0192358,57448.0,57447.0,0.66762175]
[1720775343941,0.0202358,57448.0,57447.0,0.66762175]
[1720775345320,0.0202358,57448.0,57447.0,0.44762175]
[1720775345537,0.0192358,57448.0,57447.0,0.44362175]
[1720775345732,0.0192358,57448.0,57446.0,0.1]
[1720775345967,0.0192358,57448.0,57447.0,0.004]
[1720775345968,0.0202358,57448.0,57447.0,0.004]
[1720775346193,0.0202358,57448.0,57443.0,0.100913]
[1720775346194,0.03775197,57448.0,57443.0,0.000913]
[1720775346439,0.13775197,57448.0,57443.0,0.000913]
[1720775346672,0.1182358,57448.0,57447.0,0.001]
[1720775346878,0.1182358,57448.0,57443.0,0.000913]
[1720775347125,0.1192358,57448.0,57443.0,0.000913]
[1720775347603,0.1192358,57448.0,57447.0,0.1]
[1720775347604,0.1182358,57448.0,57447.0,0.1]
[1720775347847,0.1202358,57448.0,57447.0,0.1]
[1720775348091,0.1202358,57448.0,57447.0,0.29992175]
[1720775348317,0.1182358,57448.0,57447.0,0.29992175]
[1720775348786,0.1252358,57448.0,57447.0,0.36062175]
[1720775349037,0.1272358,57448.0,57447.0,0.36062175]
[1720775349279,0.0252358,57448.0,57447.0,0.36062175]
[1720775349490,0.0322358,57448.0,57447.0,0.36062175]
[1720775349728,0.0322358,57448.0,57447.0,0.0607]
[1720775349951,0.0322358,57448.0,57447.0,0.1]
[1720775350177,0.0272358,57448.0,57447.0,0.1]
[1720775350426,0.0252358,57448.0,57447.0,0.1]
[1720775350904,0.0222358,57448.0,57443.0,0.30079317]
[1720775351142,0.0292358,57448.0,57445.0,0.1]
[1720775351598,0.0222358,57448.0,57447.0,0.1]
[1720775351845,0.0222358,57448.0,57445.0,0.1]
[1720775352327,0.0222358,57448.0,57443.0,0.00087142]
[1720775352575,0.1459,57447.0,57443.0,0.00087142]
[1720775352826,0.1,57446.0,57443.0,0.00087142]
[1720775354805,0.104,57446.0,57443.0,0.00087142]
[1720775355208,0.13081358,57446.0,57443.0,0.00087142]
[1720775356824,0.13481358,57446.0,57443.0,0.00087142]
[1720775361364,0.108,57446.0,57443.0,0.00087142]
[1720775368715,0.1892,57446.0,57443.0,0.00087142]
[1720775369930,0.0892,57446.0,57444.0,0.00306353]
[1720775370104,0.1,57445.0,57444.0,0.00306353]
[1720775370311,0.0892,57446.0,57443.0,0.00087142]
[1720775370510,0.0892,57446.0,57445.0,0.45732175]
[1720775370511,0.008,57446.0,57445.0,0.45732175]
[1720775370724,0.008,57446.0,57445.0,0.55732175]
[1720775370944,0.004,57446.0,57445.0,0.55732175]
[1720775371147,0.1,57447.0,57446.0,0.41592175]
[1720775371368,0.0182358,57448.0,57447.0,0.37712175]
[1720775371684,0.0182358,57448.0,57447.0,0.37412175]
[1720775372049,0.0182358,57448.0,57447.0,0.44632175]
[1720775372435,0.0182358,57448.0,57447.0,0.54632175]
[1720775372836,0.0182358,57448.0,57447.0,0.54232175]
[1720775373284,0.0182358,57448.0,57447.0,0.43732175]
[1720775373645,0.0182358,57448.0,57447.0,0.54232175]
[1720775373925,0.0182358,57448.0,57447.0,0.1424]
[1720775374795,0.0182358,57448.0,57447.0,0.1374]
[1720775374999,0.0212358,57448.0,57447.0,0.1374]
[1720775375593,0.0212358,57448.0,57447.0,0.1394]
[1720775376212,0.0242358,57448.0,57447.0,0.1394]
[1720775376557,0.0212358,57448.0,57447.0,0.1394]
[1720775376922,0.0212358,57448.0,57447.0,0.1374]
[1720775377324,0.0252358,57448.0,57447.0,0.1374]
[1720775377736,0.0252358,57448.0,57446.0,0.1]
[1720775377881,0.0252358,57448.0,57443.0,0.10087142]
[1720775378080,0.01548617,57447.0,57443.0,0.10087142]
[1720775378463,0.01548617,57447.0,57443.0,0.30079317]
[1720775379462,0.01548617,57447.0,57443.0,0.10087142]
[1720775380441,0.01748617,57447.0,57443.0,0.10087142]
[1720775380679,0.002,57447.0,57444.0,0.00306353]
[1720775381117,0.0182358,57446.0,57444.0,0.00306353]
[1720775382906,0.0182358,57446.0,57443.0,0.10393495]
[1720775383890,0.0192358,57446.0,57443.0,0.10393495]
[1720775384305,0.0182358,57446.0,57443.0,0.10393495]
[1720775385388,0.0192358,57446.0,57443.0,0.10087142]
[1720775385612,0.0192358,57446.0,57444.0,0.00234863]
[1720775385818,0.0192358,57446.0,57443.0,0.00087142]
[1720775386032,0.0192358,57446.0,57443.0,0.10087142]
[1720775386247,0.0192358,57446.0,57443.0,0.00087142]
[1720775386674,0.0182358,57446.0,57443.0,0.00087142]
[1720775387109,0.0252358,57446.0,57443.0,0.00087142]
[1720775389656,0.0252358,57446.0,57443.0,0.10087142]
[1720775390041,0.0252358,57446.0,57443.0,0.00087142]
[1720775392261,0.0252358,57446.0,57436.0,0.000913]
[1720775392262,0.0072,57445.0,57436.0,0.000913]
[1720775392471,0.203,57442.0,57436.0,0.000913]
[1720775392676,0.0534,57440.0,57436.0,0.000913]
[1720775392903,0.1534,57440.0,57436.0,0.000913]
[1720775393335,0.174103,57437.0,57436.0,0.000913]
[1720775393560,0.970517,57437.0,57436.0,0.000913]
[1720775393779,1.318724,57437.0,57436.0,0.000913]
[1720775394012,1.318724,57437.0,57436.0,0.34453475]
[1720775394213,1.666931,57437.0,57436.0,0.149613]
[1720775394436,1.666931,57437.0,57436.0,0.148613]
[1720775394841,1.675931,57437.0,57436.0,0.145613]
[1720775395045,1.666931,57437.0,57436.0,0.144613]
[1720775396307,1.72936845,57437.0,57436.0,0.000913]
[1720775396995,1.72136845,57437.0,57436.0,0.000913]
[1720775397208,1.73136845,57437.0,57436.0,0.000913]
[1720775397439,1.72336845,57437.0,57436.0,0.000913]
[1720775397648,1.72136845,57437.0,57436.0,0.000913]
[1720775397850,1.72936845,57437.0,57436.0,0.000913]
[1720775398051,2.08557545,57437.0,57436.0,0.000913]
[1720775398603,1.73736845,57437.0,57436.0,0.000913]
[1720775399032,1.7011668,57437.0,57436.0,0.000913]
[1720775400846,2.0493738,57437.0,57436.0,0.000913]
[1720775401259,1.7011668,57437.0,57436.0,0.000913]
[1720775401665,2.0493738,57437.0,57436.0,0.000913]
[1720775402283,2.0493738,57437.0,57432.0,0.1]
[1720775402284,0.870577,57433.0,57432.0,0.1]
[1720775402491,0.970577,57433.0,57432.0,0.1]
[1720775402898,0.970577,57433.0,57430.0,0.0608]
[1720775402899,0.870607,57431.0,57430.0,0.0608]
[1720775403105,0.970607,57431.0,57430.0,0.0608]
[1720775403316,0.52242,57425.0,57422.0,0.29992175]
[1720775403537,0.9707,57425.0,57423.0,0.1]
[1720775403745,1.31898,57425.0,57422.0,0.1]
[1720775403968,1.31898,57425.0,57422.0,0.1422]
[1720775403969,1.219022,57423.0,57422.0,0.1422]
[1720775404372,1.319022,57423.0,57422.0,0.1422]
[1720775404577,1.667314,57423.0,57422.0,0.1422]
[1720775405209,1.667314,57423.0,57422.0,0.1462]
[1720775405210,1.668314,57423.0,57422.0,0.1462]
[1720775405450,1.667314,57423.0,57422.0,0.1422]
[1720775406494,1.667314,57423.0,57418.0,0.1]
[1720775406495,0.87079,57419.0,57418.0,0.1438]
[1720775406710,0.97079,57419.0,57418.0,0.0623]
[1720775406918,1.667422,57419.0,57418.0,0.0623]
[1720775407123,2.015738,57419.0,57418.0,0.0623]
[1720775407508,1.219169,57416.0,57415.0,0.247]
[1720775407714,1.319169,57416.0,57415.0,0.247]
[1720775407913,1.667503,57416.0,57415.0,0.247]
[1720775408735,1.319169,57416.0,57415.0,0.65592175]
[1720775409289,1.319169,57416.0,57415.0,0.1]
[1720775409496,0.870882,57413.0,57412.0,0.0655]
[1720775409709,0.870957,57408.0,57407.0,0.0636]
[1720775410125,0.970957,57408.0,57407.0,0.0636]
[1720775410337,0.970957,57408.0,57399.0,0.009097]
[1720775410338,0.1742,57405.0,57404.0,0.0636]
[1720775410539,0.622601,57405.0,57404.0,0.0636]
[1720775410876,0.871032,57403.0,57402.0,0.0782]
[1720775411128,0.871032,57403.0,57399.0,0.009097]
[1720775411129,0.87108,57400.0,57399.0,0.009097]
[1720775411375,1.667944,57400.0,57399.0,0.009097]
[1720775411824,1.6861798,57400.0,57399.0,0.009097]
[1720775412082,1.73903246,57400.0,57399.0,0.009097]
[1720775413761,1.74603246,57400.0,57399.0,0.009097]
[1720775414659,1.75303246,57400.0,57399.0,0.009097]
[1720775414921,1.75303246,57400.0,57399.0,0.00903926]
[1720775415401,2.10146446,57400.0,57399.0,0.00903926]
[1720775415626,2.10146446,57400.0,57391.0,0.011097]
[1720775415627,0.2,57398.0,57391.0,0.011097]
[1720775415857,0.2,57398.0,57389.0,0.009097]
[1720775415858,0.522738,57390.0,57389.0,0.009097]
[1720775416088,1.0438138,57390.0,57389.0,0.009097]
[1720775416353,1.64651108,57390.0,57389.0,0.009097]
[1720775416571,1.64651108,57390.0,57389.0,0.087697]
[1720775417529,1.66051108,57390.0,57389.0,0.087697]
[1720775417731,1.66051108,57390.0,57389.0,0.28761875]
[1720775417988,1.66051108,57390.0,57389.0,0.45781875]
[1720775417989,1.27316642,57390.0,57389.0,0.45781875]
[1720775418210,1.27316642,57390.0,57389.0,0.55781875]
[1720775418447,1.25916642,57390.0,57389.0,0.44881875]
[1720775419211,1.25916642,57390.0,57389.0,0.248897]
[1720775420376,1.26816642,57390.0,57389.0,0.248897]
[1720775420627,1.24516642,57390.0,57389.0,0.248897]
[1720775421106,1.24516642,57390.0,57389.0,0.148897]
[1720775421359,1.24516642,57390.0,57389.0,0.248897]
[1720775421598,1.24516642,57390.0,57389.0,0.148897]
[1720775421819,1.24516642,57390.0,57389.0,0.248897]
[1720775422293,1.24516642,57390.0,57389.0,0.148897]
[1720775422529,1.59365842,57390.0,57389.0,0.148897]
[1720775422782,1.59215842,57390.0,57389.0,0.148897]
[1720775423037,1.61661495,57390.0,57389.0,0.148897]
[1720775424473,1.62161495,57390.0,57389.0,0.148897]
[1720775424707,1.62261495,57390.0,57389.0,0.148897]
[1720775425180,1.62061495,57390.0,57389.0,0.148897]
[1720775425419,1.62061495,57390.0,57389.0,0.070297]
[1720775425644,1.62461495,57390.0,57389.0,0.009097]
[1720775425865,1.69450495,57390.0,57389.0,0.009097]
[1720775426864,1.69050495,57390.0,57389.0,0.009097]
[1720775427123,1.71474075,57390.0,57389.0,0.009097]
[1720775427346,2.05323275,57390.0,57389.0,0.009097]
[1720775427576,2.22947015,57390.0,57389.0,0.009097]
[1720775427803,2.23347015,57390.0,57389.0,0.009097]
[1720775428033,1.88097815,57390.0,57389.0,0.009097]
[1720775428273,1.71474075,57390.0,57389.0,0.009097]
[1720775428533,2.21934366,57390.0,57389.0,0.009097]
[1720775428780,2.16705075,57390.0,57389.0,1e-08]
[1720775429016,0.522756,57388.0,57387.0,0.009097]
[1720775429246,1.319764,57388.0,57387.0,0.009097]
[1720775429468,2.06306491,57388.0,57387.0,0.009097]
[1720775430613,2.06506491,57388.0,57387.0,0.009097]
[1720775430843,2.23530231,57388.0,57387.0,0.009097]
[1720775431312,2.43923631,57388.0,57387.0,0.009097]
[1720775431545,0.174258,57386.0,57385.0,0.009097]
[1720775431775,1.23898591,57386.0,57385.0,1e-08]
[1720775432000,1.23898591,57386.0,57378.0,0.0706039]
[1720775432001,0.3163039,57385.0,57378.0,0.0706039]
[1720775432278,1.219956,57379.0,57378.0,0.0706039]